[Event "Early-Titled-Tuesday-Blitz-January-16-2024"]
[Site "Chess.com"]
[Date "2024.01.16"]
[Round "5"]
[White "azikom"]
[Black "vladislavkovalev"]
[Result "1-0"]
[WhiteElo "2694"]
[BlackElo "2870"]
[TimeControl "180+1"]
[EndTime "8:58:21 PST"]
[Termination "azikom won on time"]

1. d4 {[%clk 0:03:00.9]} 1... Nf6 {[%clk 0:03:00.5]} 2. c4 {[%clk 0:02:59.7]}
2... e6 {[%clk 0:03:00.9]} 3. Nc3 {[%clk 0:02:59.3]} 3... Bb4 {[%clk 0:03:00.7]}
4. e3 {[%clk 0:02:58.9]} 4... O-O {[%clk 0:03:00.2]} 5. Ne2 {[%clk 0:02:59.2]}
5... Re8 {[%clk 0:02:59.6]} 6. a3 {[%clk 0:02:59.1]} 6... Bf8 {[%clk 0:03:00]}
7. Ng3 {[%clk 0:02:55.8]} 7... d5 {[%clk 0:02:58.3]} 8. b4 {[%clk 0:02:55.2]}
8... a5 {[%clk 0:02:53]} 9. b5 {[%clk 0:02:54.7]} 9... c5 {[%clk 0:02:53.2]} 10.
bxc6 {[%clk 0:02:54.8]} 10... bxc6 {[%clk 0:02:49.9]} 11. Be2 {[%clk 0:02:49]}
11... Ba6 {[%clk 0:02:41.9]} 12. cxd5 {[%clk 0:02:34.7]} 12... cxd5 {[%clk
0:02:39]} 13. O-O {[%clk 0:02:33.6]} 13... Nbd7 {[%clk 0:02:26.9]} 14. Nb5
{[%clk 0:02:32.8]} 14... Nb6 {[%clk 0:02:24.2]} 15. a4 {[%clk 0:02:31.9]} 15...
Nc4 {[%clk 0:02:17.4]} 16. e4 {[%clk 0:02:14.7]} 16... Rc8 {[%clk 0:02:01]} 17.
e5 {[%clk 0:02:14.2]} 17... Ne4 {[%clk 0:01:58.5]} 18. Bd3 {[%clk 0:02:01.1]}
18... Nxg3 {[%clk 0:01:37.4]} 19. hxg3 {[%clk 0:02:02]} 19... g6 {[%clk
0:01:37.7]} 20. g4 {[%clk 0:01:53.6]} 20... Bxb5 {[%clk 0:01:35.5]} 21. axb5
{[%clk 0:01:53.3]} 21... Qb6 {[%clk 0:01:36.3]} 22. Bb1 {[%clk 0:01:15.9]} 22...
Qxb5 {[%clk 0:01:33.1]} 23. f4 {[%clk 0:01:15.6]} 23... Bb4 {[%clk 0:01:07.6]}
24. Bc2 {[%clk 0:01:13.8]} 24... Qb6 {[%clk 0:01:05.6]} 25. Rf3 {[%clk
0:01:05.9]} 25... Nxe5 {[%clk 0:00:37.9]} 26. fxe5 {[%clk 0:01:02.6]} 26... Rxc2
{[%clk 0:00:38.6]} 27. Qxc2 {[%clk 0:00:45.6]} 27... Qxd4+ {[%clk 0:00:38.8]}
28. Kh1 {[%clk 0:00:28.1]} 28... Qxa1 {[%clk 0:00:38.9]} 29. Qc7 {[%clk
0:00:27.8]} 29... Be7 {[%clk 0:00:15.6]} 30. Kh2 {[%clk 0:00:21.5]} 30... Qd4
{[%clk 0:00:04.8]} 31. Ba3 {[%clk 0:00:16.5]} 1-0

[Event "Early-Titled-Tuesday-Blitz-January-16-2024"]
[Site "Chess.com"]
[Date "2024.01.16"]
[Round "5"]
[White "Levanzovsky"]
[Black "AradNazari"]
[Result "0-1"]
[WhiteElo "2465"]
[BlackElo "2638"]
[TimeControl "180+1"]
[EndTime "8:58:22 PST"]
[Termination "AradNazari won by checkmate"]

1. Nf3 {[%clk 0:02:54.2]} 1... g5 {[%clk 0:03:00.9]} 2. Nxg5 {[%clk 0:02:51.6]}
2... e5 {[%clk 0:02:57.6]} 3. d4 {[%clk 0:02:49.6]} 3... h6 {[%clk 0:02:52.3]}
4. Nh3 {[%clk 0:02:28.1]} 4... e4 {[%clk 0:02:31.5]} 5. Nf4 {[%clk 0:02:21.8]}
5... Nf6 {[%clk 0:02:21.8]} 6. c4 {[%clk 0:02:21.5]} 6... c6 {[%clk 0:02:16.8]}
7. Nc3 {[%clk 0:02:13.9]} 7... d6 {[%clk 0:02:08.7]} 8. g3 {[%clk 0:02:00.2]}
8... Bf5 {[%clk 0:02:01.4]} 9. Bg2 {[%clk 0:02:00.1]} 9... Bg7 {[%clk
0:01:59.4]} 10. O-O {[%clk 0:01:57.9]} 10... Nbd7 {[%clk 0:01:57.6]} 11. f3
{[%clk 0:01:30.3]} 11... exf3 {[%clk 0:01:50]} 12. Bxf3 {[%clk 0:01:31.2]} 12...
h5 {[%clk 0:01:43.9]} 13. e4 {[%clk 0:01:26.2]} 13... Bg4 {[%clk 0:01:41.4]} 14.
h3 {[%clk 0:01:26.4]} 14... Bxf3 {[%clk 0:01:34.8]} 15. Qxf3 {[%clk 0:01:27.3]}
15... Qb6 {[%clk 0:01:26.9]} 16. c5 {[%clk 0:01:19.7]} 16... dxc5 {[%clk
0:01:23.9]} 17. e5 {[%clk 0:01:20]} 17... Ng4 {[%clk 0:01:07.3]} 18. hxg4 {[%clk
0:01:13.7]} 18... cxd4 {[%clk 0:01:06.9]} 19. Ne4 {[%clk 0:00:42.4]} 19... Nxe5
{[%clk 0:01:02.4]} 20. Nd6+ {[%clk 0:00:26.3]} 20... Kd7 {[%clk 0:00:58.2]} 21.
Qa3 {[%clk 0:00:26.2]} 21... Bf8 {[%clk 0:00:47]} 22. Nd3 {[%clk 0:00:16.6]}
22... Bxd6 {[%clk 0:00:17.7]} 23. Nxe5+ {[%clk 0:00:15.2]} 23... Bxe5 {[%clk
0:00:18.1]} 24. Rxf7+ {[%clk 0:00:15.3]} 24... Kc8 {[%clk 0:00:13.4]} 25. Qe7
{[%clk 0:00:06.6]} 25... d3+ {[%clk 0:00:08.8]} 26. Kg2 {[%clk 0:00:06.1]} 26...
Qb5 {[%clk 0:00:07.6]} 27. Qd7+ {[%clk 0:00:02.3]} 27... Kb8 {[%clk 0:00:07.8]}
28. Bf4 {[%clk 0:00:02.5]} 28... Qxb2+ {[%clk 0:00:07.5]} 29. Kf3 {[%clk
0:00:01.3]} 29... Qe2# {[%clk 0:00:07.1]} 0-1

[Event "Early-Titled-Tuesday-Blitz-January-16-2024"]
[Site "Chess.com"]
[Date "2024.01.16"]
[Round "5"]
[White "Chessbard1972"]
[Black "kritipatel"]
[Result "1-0"]
[WhiteElo "2406"]
[BlackElo "2169"]
[TimeControl "180+1"]
[EndTime "8:58:22 PST"]
[Termination "Chessbard1972 won by checkmate"]

1. d4 {[%clk 0:03:00.9]} 1... d5 {[%clk 0:02:59.1]} 2. c4 {[%clk 0:02:59.3]}
2... e6 {[%clk 0:02:59.2]} 3. Nc3 {[%clk 0:02:58.9]} 3... Nf6 {[%clk 0:02:59.9]}
4. Bg5 {[%clk 0:02:56.2]} 4... Be7 {[%clk 0:03:00.5]} 5. e3 {[%clk 0:02:55.2]}
5... O-O {[%clk 0:03:00.7]} 6. cxd5 {[%clk 0:02:55.1]} 6... exd5 {[%clk
0:03:00.1]} 7. Qc2 {[%clk 0:02:55.4]} 7... Nbd7 {[%clk 0:02:59.8]} 8. Bd3 {[%clk
0:02:55.4]} 8... c6 {[%clk 0:03:00.2]} 9. Nge2 {[%clk 0:02:54.4]} 9... Re8
{[%clk 0:03:00.9]} 10. O-O {[%clk 0:02:53.1]} 10... Nf8 {[%clk 0:03:01.4]} 11.
f3 {[%clk 0:02:51.8]} 11... g6 {[%clk 0:03:00.7]} 12. Bh4 {[%clk 0:02:48]} 12...
Ne6 {[%clk 0:03:00.6]} 13. Bf2 {[%clk 0:02:44.1]} 13... b5 {[%clk 0:03:00.8]}
14. a3 {[%clk 0:02:43.1]} 14... Bb7 {[%clk 0:03:00]} 15. Rad1 {[%clk 0:02:41.7]}
15... Rc8 {[%clk 0:02:57.9]} 16. b4 {[%clk 0:02:39.6]} 16... a5 {[%clk
0:02:54.9]} 17. Rb1 {[%clk 0:02:36.9]} 17... Bd6 {[%clk 0:02:42]} 18. h3 {[%clk
0:02:33.2]} 18... Qe7 {[%clk 0:02:38.1]} 19. Qb2 {[%clk 0:02:28.1]} 19... axb4
{[%clk 0:02:32.1]} 20. axb4 {[%clk 0:02:27.8]} 20... Bb8 {[%clk 0:02:29.6]} 21.
e4 {[%clk 0:02:19.4]} 21... dxe4 {[%clk 0:01:59.4]} 22. fxe4 {[%clk 0:02:17.9]}
22... Nf4 {[%clk 0:01:52.1]} 23. Nxf4 {[%clk 0:02:11.6]} 23... Bxf4 {[%clk
0:01:53]} 24. Rbe1 {[%clk 0:02:08]} 24... Nh5 {[%clk 0:01:50.1]} 25. Ne2 {[%clk
0:02:02.1]} 25... Bb8 {[%clk 0:01:41.1]} 26. e5 {[%clk 0:01:58.9]} 26... Qg5
{[%clk 0:01:37.4]} 27. Be4 {[%clk 0:01:46.9]} 27... f6 {[%clk 0:01:27.1]} 28.
Qb3+ {[%clk 0:01:42]} 28... Kg7 {[%clk 0:01:19.5]} 29. h4 {[%clk 0:01:38]} 29...
Qg4 {[%clk 0:01:12.5]} 30. Bf3 {[%clk 0:01:37.5]} 30... Qf5 {[%clk 0:01:05.7]}
31. g4 {[%clk 0:01:35.4]} 31... Qd7 {[%clk 0:00:53.9]} 32. gxh5 {[%clk
0:01:34.4]} 32... fxe5 {[%clk 0:00:54.1]} 33. Ng3 {[%clk 0:01:16.7]} 33... exd4
{[%clk 0:00:38.8]} 34. hxg6 {[%clk 0:01:15.3]} 34... hxg6 {[%clk 0:00:33.1]} 35.
h5 {[%clk 0:01:14.3]} 35... g5 {[%clk 0:00:29.8]} 36. Be4 {[%clk 0:01:05.3]}
36... Rf8 {[%clk 0:00:18.6]} 37. Qd3 {[%clk 0:01:01.4]} 37... Rcd8 {[%clk
0:00:15.9]} 38. Nf5+ {[%clk 0:00:56.2]} 38... Rxf5 {[%clk 0:00:11.4]} 39. Bxf5
{[%clk 0:00:55.3]} 39... Qd6 {[%clk 0:00:12.1]} 40. h6+ {[%clk 0:00:49.7]} 40...
Kxh6 {[%clk 0:00:11.4]} 41. Re6+ {[%clk 0:00:48.8]} 41... Qxe6 {[%clk
0:00:10.4]} 42. Bxe6 {[%clk 0:00:49.1]} 42... Kg7 {[%clk 0:00:11.1]} 43. Bxd4+
{[%clk 0:00:48.1]} 43... Kh6 {[%clk 0:00:09.6]} 44. Qh3+ {[%clk 0:00:46.5]}
44... Kg6 {[%clk 0:00:09.3]} 45. Rf6+ {[%clk 0:00:42.7]} 45... Kg7 {[%clk
0:00:08.4]} 46. Qh6# {[%clk 0:00:42.6]} 1-0

[Event "Early-Titled-Tuesday-Blitz-January-16-2024"]
[Site "Chess.com"]
[Date "2024.01.16"]
[Round "5"]
[White "jinbojinbo"]
[Black "Genghis_K"]
[Result "0-1"]
[WhiteElo "2631"]
[BlackElo "2851"]
[TimeControl "180+1"]
[EndTime "8:58:25 PST"]
[Termination "Genghis_K won by resignation"]

1. e4 {[%clk 0:03:00.9]} 1... c5 {[%clk 0:02:50.3]} 2. Nf3 {[%clk 0:03:00.9]}
2... d6 {[%clk 0:02:50.2]} 3. d4 {[%clk 0:03:01.2]} 3... cxd4 {[%clk 0:02:50.1]}
4. Nxd4 {[%clk 0:03:02.1]} 4... Nf6 {[%clk 0:02:50.8]} 5. Nc3 {[%clk 0:03:02.4]}
5... a6 {[%clk 0:02:51.5]} 6. Be3 {[%clk 0:03:02.7]} 6... Ng4 {[%clk 0:02:51]}
7. Bc1 {[%clk 0:03:01.9]} 7... Nc6 {[%clk 0:02:50.7]} 8. Nxc6 {[%clk 0:02:55.2]}
8... bxc6 {[%clk 0:02:50.5]} 9. Be2 {[%clk 0:02:55.1]} 9... h5 {[%clk
0:02:49.3]} 10. h3 {[%clk 0:02:53.4]} 10... Nf6 {[%clk 0:02:48]} 11. O-O {[%clk
0:02:49.8]} 11... Qb6 {[%clk 0:02:17.6]} 12. Bc4 {[%clk 0:02:18.1]} 12... g5
{[%clk 0:02:03]} 13. Bxg5 {[%clk 0:02:10.4]} 13... Qxb2 {[%clk 0:02:01.4]} 14.
Qd3 {[%clk 0:02:09.2]} 14... Bg7 {[%clk 0:01:54.8]} 15. Rab1 {[%clk 0:01:59.1]}
15... Qa3 {[%clk 0:01:54.3]} 16. Bxf6 {[%clk 0:01:36.4]} 16... Bxf6 {[%clk
0:01:43.4]} 17. Nd5 {[%clk 0:01:36.1]} 17... Qc5 {[%clk 0:01:33.9]} 18. Nxf6+
{[%clk 0:01:35.7]} 18... exf6 {[%clk 0:01:34.8]} 19. Rfd1 {[%clk 0:01:32.3]}
19... Ke7 {[%clk 0:01:34.6]} 20. Qd4 {[%clk 0:01:30.5]} 20... Qe5 {[%clk
0:01:23.5]} 21. Rb6 {[%clk 0:01:17.2]} 21... Bd7 {[%clk 0:01:12.1]} 22. Rb7
{[%clk 0:01:12.7]} 22... Rhb8 {[%clk 0:01:08.5]} 23. Rxb8 {[%clk 0:01:05.6]}
23... Qxd4 {[%clk 0:00:48.6]} 24. Rxd4 {[%clk 0:01:05.1]} 24... Rxb8 {[%clk
0:00:49.3]} 25. Bb3 {[%clk 0:00:49]} 25... c5 {[%clk 0:00:42.1]} 26. Rd2 {[%clk
0:00:48.7]} 26... a5 {[%clk 0:00:41.2]} 27. c3 {[%clk 0:00:40.9]} 27... a4
{[%clk 0:00:40.3]} 28. Bd1 {[%clk 0:00:41.1]} 28... Rb1 {[%clk 0:00:38.7]} 29.
Kh2 {[%clk 0:00:40.3]} 29... a3 {[%clk 0:00:39.1]} 30. Bxh5 {[%clk 0:00:30.9]}
30... Rb2 {[%clk 0:00:36.1]} 31. Rd1 {[%clk 0:00:20.3]} 31... Rxa2 {[%clk
0:00:36.2]} 32. Kg3 {[%clk 0:00:18.2]} 32... Rb2 {[%clk 0:00:35.8]} 33. Bg4
{[%clk 0:00:17.5]} 33... Bb5 {[%clk 0:00:35.2]} 34. Ra1 {[%clk 0:00:16.9]} 34...
a2 {[%clk 0:00:35.3]} 35. Bf5 {[%clk 0:00:14.9]} 35... Bc4 {[%clk 0:00:35]} 36.
e5 {[%clk 0:00:15]} 36... fxe5 {[%clk 0:00:34.3]} 37. h4 {[%clk 0:00:14.9]}
37... Kf6 {[%clk 0:00:34]} 38. Bh7 {[%clk 0:00:14.1]} 38... d5 {[%clk
0:00:33.5]} 39. f3 {[%clk 0:00:14.5]} 39... e4 {[%clk 0:00:32.8]} 40. fxe4
{[%clk 0:00:14.7]} 40... Kg7 {[%clk 0:00:29.4]} 41. Bf5 {[%clk 0:00:13.1]} 41...
Rb1 {[%clk 0:00:29.4]} 0-1

[Event "Early-Titled-Tuesday-Blitz-January-16-2024"]
[Site "Chess.com"]
[Date "2024.01.16"]
[Round "5"]
[White "albi1999"]
[Black "GrumbleBruno"]
[Result "1-0"]
[WhiteElo "2621"]
[BlackElo "2456"]
[TimeControl "180+1"]
[EndTime "8:58:28 PST"]
[Termination "albi1999 won on time"]

1. d4 {[%clk 0:03:00.2]} 1... Nf6 {[%clk 0:02:59.2]} 2. Nf3 {[%clk 0:02:59.3]}
2... g6 {[%clk 0:02:57.6]} 3. Nc3 {[%clk 0:02:58.8]} 3... Bg7 {[%clk 0:02:56.9]}
4. e4 {[%clk 0:02:58.3]} 4... d5 {[%clk 0:02:57.2]} 5. e5 {[%clk 0:02:56.3]}
5... Ne4 {[%clk 0:02:57.4]} 6. Bd3 {[%clk 0:02:55.4]} 6... c5 {[%clk 0:02:54.7]}
7. Nxe4 {[%clk 0:02:08.9]} 7... dxe4 {[%clk 0:02:52.8]} 8. Bxe4 {[%clk
0:02:08.9]} 8... Nc6 {[%clk 0:02:43.9]} 9. c3 {[%clk 0:02:06.3]} 9... Bg4 {[%clk
0:02:27.8]} 10. Be3 {[%clk 0:02:04.2]} 10... cxd4 {[%clk 0:02:08.1]} 11. cxd4
{[%clk 0:02:03.5]} 11... Qa5+ {[%clk 0:01:48.5]} 12. Qd2 {[%clk 0:02:02.1]}
12... Qxd2+ {[%clk 0:01:45.8]} 13. Nxd2 {[%clk 0:02:00.7]} 13... Rd8 {[%clk
0:01:38.6]} 14. Nb3 {[%clk 0:01:59.6]} 14... Be6 {[%clk 0:01:30]} 15. Rd1 {[%clk
0:01:45.1]} 15... Bd5 {[%clk 0:01:07.4]} 16. f3 {[%clk 0:01:40.7]} 16... f6
{[%clk 0:00:47.7]} 17. exf6 {[%clk 0:01:39.3]} 17... exf6 {[%clk 0:00:46.4]} 18.
Kf2 {[%clk 0:01:38.5]} 18... f5 {[%clk 0:00:39.7]} 19. Bxd5 {[%clk 0:01:35.9]}
19... Rxd5 {[%clk 0:00:39.2]} 20. Rhe1 {[%clk 0:01:35.7]} 20... Kf7 {[%clk
0:00:37.3]} 21. Nc5 {[%clk 0:01:31.7]} 21... b6 {[%clk 0:00:36.8]} 22. Nd3
{[%clk 0:01:31.6]} 22... Bxd4 {[%clk 0:00:28.8]} 23. Bxd4 {[%clk 0:01:28.6]}
23... Nxd4 {[%clk 0:00:24.9]} 24. Ne5+ {[%clk 0:01:17.7]} 24... Kf6 {[%clk
0:00:24.5]} 25. Nc6 {[%clk 0:01:17.5]} 25... Rd6 {[%clk 0:00:11.5]} 26. Nxd4
{[%clk 0:01:09.6]} 26... Rhd8 {[%clk 0:00:11.5]} 27. Ke3 {[%clk 0:01:08]} 27...
f4+ {[%clk 0:00:07.5]} 28. Ke4 {[%clk 0:01:04.3]} 28... g5 {[%clk 0:00:07.6]}
29. g3 {[%clk 0:00:39.3]} 29... fxg3 {[%clk 0:00:05.9]} 30. hxg3 {[%clk
0:00:40.2]} 30... h6 {[%clk 0:00:06.1]} 31. g4 {[%clk 0:00:39.5]} 31... R8d7
{[%clk 0:00:05.4]} 32. a4 {[%clk 0:00:19.9]} 32... a6 {[%clk 0:00:03.7]} 33. b4
{[%clk 0:00:20]} 33... a5 {[%clk 0:00:04]} 34. b5 {[%clk 0:00:19]} 34... Rd8
{[%clk 0:00:03.2]} 35. Re3 {[%clk 0:00:15.6]} 1-0

[Event "Early-Titled-Tuesday-Blitz-January-16-2024"]
[Site "Chess.com"]
[Date "2024.01.16"]
[Round "5"]
[White "yaguigor"]
[Black "Maxfan2008"]
[Result "1-0"]
[WhiteElo "2659"]
[BlackElo "2490"]
[TimeControl "180+1"]
[EndTime "8:58:33 PST"]
[Termination "yaguigor won by resignation"]

1. Nf3 {[%clk 0:03:00.9]} 1... d5 {[%clk 0:02:58.8]} 2. d4 {[%clk 0:02:59.2]}
2... Nf6 {[%clk 0:02:58.5]} 3. c4 {[%clk 0:02:59.5]} 3... c6 {[%clk 0:02:49.1]}
4. Nc3 {[%clk 0:02:58.5]} 4... dxc4 {[%clk 0:02:49]} 5. a4 {[%clk 0:02:57.2]}
5... Bf5 {[%clk 0:02:48.6]} 6. e3 {[%clk 0:02:55]} 6... e6 {[%clk 0:02:46.5]} 7.
Bxc4 {[%clk 0:02:55]} 7... Bb4 {[%clk 0:02:43.8]} 8. O-O {[%clk 0:02:54]} 8...
O-O {[%clk 0:02:40.4]} 9. Qe2 {[%clk 0:02:52.6]} 9... Bg6 {[%clk 0:02:38.1]} 10.
Ne5 {[%clk 0:02:51]} 10... Nbd7 {[%clk 0:02:29.7]} 11. Nxg6 {[%clk 0:02:50.7]}
11... hxg6 {[%clk 0:02:30.6]} 12. Rd1 {[%clk 0:02:45.9]} 12... Qe7 {[%clk
0:02:22.7]} 13. e4 {[%clk 0:02:43.8]} 13... e5 {[%clk 0:02:22.2]} 14. dxe5
{[%clk 0:02:35.5]} 14... Nxe5 {[%clk 0:02:20.9]} 15. Bb3 {[%clk 0:02:33.7]}
15... Rad8 {[%clk 0:02:14.9]} 16. Be3 {[%clk 0:02:25.5]} 16... Bxc3 {[%clk
0:01:32.7]} 17. bxc3 {[%clk 0:02:23.3]} 17... Nxe4 {[%clk 0:01:33.2]} 18. Bd4
{[%clk 0:02:10.7]} 18... Nc5 {[%clk 0:01:15.1]} 19. Bc2 {[%clk 0:01:51.7]} 19...
Rfe8 {[%clk 0:01:12.6]} 20. Re1 {[%clk 0:01:49.9]} 20... Nf3+ {[%clk 0:01:04.7]}
21. gxf3 {[%clk 0:01:33.3]} 21... Qxe2 {[%clk 0:00:57.9]} 22. Rxe2 {[%clk
0:01:32.4]} 22... Rxe2 {[%clk 0:00:58.6]} 23. Rc1 {[%clk 0:01:19.1]} 23... Ne6
{[%clk 0:00:53.8]} 24. Bxa7 {[%clk 0:01:13.8]} 24... c5 {[%clk 0:00:48.8]} 25.
Bb3 {[%clk 0:01:11]} 25... Nf4 {[%clk 0:00:22.2]} 26. Bxc5 {[%clk 0:01:07.4]}
26... Rde8 {[%clk 0:00:13.2]} 27. Be3 {[%clk 0:01:02.3]} 27... Nh3+ {[%clk
0:00:10.3]} 28. Kf1 {[%clk 0:01:00.8]} 28... Rb2 {[%clk 0:00:10.2]} 29. Bd5
{[%clk 0:00:59.2]} 29... Re5 {[%clk 0:00:06]} 30. c4 {[%clk 0:00:55.8]} 30...
Kh7 {[%clk 0:00:05.4]} 31. Bd4 {[%clk 0:00:52.8]} 31... Rf5 {[%clk 0:00:05.2]}
32. Bxb2 {[%clk 0:00:52.3]} 32... Nf4 {[%clk 0:00:03.7]} 33. Be4 {[%clk
0:00:43.6]} 33... Ra5 {[%clk 0:00:03.7]} 34. Ra1 {[%clk 0:00:39.9]} 34... Rc5
{[%clk 0:00:03.5]} 35. Bxb7 {[%clk 0:00:37]} 35... Rxc4 {[%clk 0:00:03.9]} 36.
a5 {[%clk 0:00:36]} 36... Rb4 {[%clk 0:00:04.4]} 37. a6 {[%clk 0:00:35]} 37...
Rxb2 {[%clk 0:00:05]} 38. a7 {[%clk 0:00:35.2]} 38... Nd3 {[%clk 0:00:03.8]} 39.
a8=Q {[%clk 0:00:34.6]} 39... Rxf2+ {[%clk 0:00:04.7]} 40. Kg1 {[%clk
0:00:34.5]} 40... Rd2 {[%clk 0:00:04.3]} 41. Qa4 {[%clk 0:00:27.1]} 41... Nf4
{[%clk 0:00:04.7]} 42. Qxf4 {[%clk 0:00:26.6]} 42... Rg2+ {[%clk 0:00:05.1]} 1-0

[Event "Early-Titled-Tuesday-Blitz-January-16-2024"]
[Site "Chess.com"]
[Date "2024.01.16"]
[Round "5"]
[White "viktorskliarov"]
[Black "anasta10"]
[Result "0-1"]
[WhiteElo "2656"]
[BlackElo "2518"]
[TimeControl "180+1"]
[EndTime "8:58:34 PST"]
[Termination "anasta10 won by resignation"]

1. e4 {[%clk 0:03:00.9]} 1... g6 {[%clk 0:02:54.8]} 2. d4 {[%clk 0:03:00.7]}
2... Bg7 {[%clk 0:02:54.8]} 3. Nc3 {[%clk 0:03:00.5]} 3... d6 {[%clk 0:02:54.5]}
4. Be3 {[%clk 0:02:54.6]} 4... a6 {[%clk 0:02:54.7]} 5. a4 {[%clk 0:02:50.7]}
5... Nd7 {[%clk 0:02:53]} 6. f3 {[%clk 0:02:49.5]} 6... e5 {[%clk 0:02:52.2]} 7.
Nge2 {[%clk 0:02:45.7]} 7... Ngf6 {[%clk 0:02:48]} 8. g4 {[%clk 0:02:41.4]} 8...
exd4 {[%clk 0:02:43.8]} 9. Nxd4 {[%clk 0:02:40.4]} 9... Ne5 {[%clk 0:02:43.5]}
10. Be2 {[%clk 0:02:34.2]} 10... c5 {[%clk 0:02:28.1]} 11. Nb3 {[%clk
0:02:33.3]} 11... Be6 {[%clk 0:02:28.8]} 12. Nd2 {[%clk 0:01:54.9]} 12... O-O
{[%clk 0:01:47.1]} 13. g5 {[%clk 0:01:50]} 13... Ne8 {[%clk 0:01:42.1]} 14. f4
{[%clk 0:01:49.1]} 14... Nc6 {[%clk 0:01:42.5]} 15. Bc4 {[%clk 0:01:15.1]} 15...
Nc7 {[%clk 0:01:41]} 16. Bxe6 {[%clk 0:00:44.1]} 16... fxe6 {[%clk 0:01:39.2]}
17. Qg4 {[%clk 0:00:43.6]} 17... b6 {[%clk 0:01:32.3]} 18. O-O {[%clk
0:00:14.8]} 18... d5 {[%clk 0:01:30.6]} 19. Bf2 {[%clk 0:00:15.2]} 19... Qe7
{[%clk 0:01:21.8]} 20. Rae1 {[%clk 0:00:13.9]} 20... Qf7 {[%clk 0:01:20]} 21.
Bg3 {[%clk 0:00:12.1]} 21... Nd4 {[%clk 0:01:14]} 22. Rc1 {[%clk 0:00:07.2]}
22... b5 {[%clk 0:01:12]} 23. Nf3 {[%clk 0:00:07.3]} 23... b4 {[%clk 0:01:09.1]}
24. Na2 {[%clk 0:00:06.7]} 24... Ne2+ {[%clk 0:01:07.6]} 25. Kg2 {[%clk
0:00:07.2]} 25... Nxc1 {[%clk 0:01:08.4]} 26. Nxc1 {[%clk 0:00:06.8]} 26... dxe4
{[%clk 0:01:09.2]} 27. Nd2 {[%clk 0:00:06.8]} 27... Qf5 {[%clk 0:01:06.9]} 28.
h3 {[%clk 0:00:06.4]} 28... Qd5 {[%clk 0:00:38.3]} 29. Nb1 {[%clk 0:00:04.9]}
29... Rad8 {[%clk 0:00:34.3]} 30. h4 {[%clk 0:00:03.5]} 30... Bxb2 {[%clk
0:00:32.6]} 31. h5 {[%clk 0:00:03.2]} 31... e3+ {[%clk 0:00:32.3]} 32. Kh3
{[%clk 0:00:03.3]} 32... Qf5 {[%clk 0:00:32.8]} 33. hxg6 {[%clk 0:00:02.8]}
33... hxg6 {[%clk 0:00:32.9]} 34. Nd3 {[%clk 0:00:03.3]} 34... Bd4 {[%clk
0:00:29.4]} 35. Re1 {[%clk 0:00:03.8]} 35... Rd7 {[%clk 0:00:29.4]} 36. Qxf5
{[%clk 0:00:03.7]} 36... exf5 {[%clk 0:00:29.2]} 37. Kg2 {[%clk 0:00:03.9]}
37... Re8 {[%clk 0:00:29.3]} 38. Kf3 {[%clk 0:00:04.2]} 38... Nd5 {[%clk
0:00:29.6]} 39. Re2 {[%clk 0:00:04.3]} 39... a5 {[%clk 0:00:27.9]} 40. Be1
{[%clk 0:00:04]} 40... c4 {[%clk 0:00:27.5]} 41. Ne5 {[%clk 0:00:03.5]} 41...
Bxe5 {[%clk 0:00:27.8]} 42. fxe5 {[%clk 0:00:04.4]} 42... Rxe5 {[%clk 0:00:28]}
43. Bg3 {[%clk 0:00:04.6]} 43... Re4 {[%clk 0:00:25.4]} 0-1

[Event "Early-Titled-Tuesday-Blitz-January-16-2024"]
[Site "Chess.com"]
[Date "2024.01.16"]
[Round "5"]
[White "Vesper2018"]
[Black "Pastore1978"]
[Result "1-0"]
[WhiteElo "2555"]
[BlackElo "2282"]
[TimeControl "180+1"]
[EndTime "8:58:35 PST"]
[Termination "Vesper2018 won on time"]

1. e4 {[%clk 0:02:59.5]} 1... e6 {[%clk 0:03:00.1]} 2. d4 {[%clk 0:02:58.1]}
2... d5 {[%clk 0:03:00.6]} 3. e5 {[%clk 0:02:55.7]} 3... c5 {[%clk 0:03:00.7]}
4. c3 {[%clk 0:02:54.5]} 4... Nc6 {[%clk 0:03:01.3]} 5. Nf3 {[%clk 0:02:54.3]}
5... Bd7 {[%clk 0:03:02]} 6. Be2 {[%clk 0:02:52.7]} 6... Nge7 {[%clk 0:03:01.5]}
7. Na3 {[%clk 0:02:52]} 7... cxd4 {[%clk 0:03:00.5]} 8. cxd4 {[%clk 0:02:52]}
8... Nf5 {[%clk 0:03:01.2]} 9. Nc2 {[%clk 0:02:52.5]} 9... Qb6 {[%clk
0:03:01.6]} 10. O-O {[%clk 0:02:46.6]} 10... a5 {[%clk 0:03:01.8]} 11. Rb1
{[%clk 0:02:38.7]} 11... Nb4 {[%clk 0:02:54]} 12. g4 {[%clk 0:02:15.4]} 12...
Ne7 {[%clk 0:02:46.5]} 13. a3 {[%clk 0:02:10.7]} 13... Nxc2 {[%clk 0:02:42]} 14.
Qxc2 {[%clk 0:02:11]} 14... Nc6 {[%clk 0:02:42.4]} 15. Be3 {[%clk 0:02:08.9]}
15... Rc8 {[%clk 0:02:40.4]} 16. Qd1 {[%clk 0:02:02.9]} 16... Be7 {[%clk
0:02:39.6]} 17. Bd3 {[%clk 0:01:56.1]} 17... Na7 {[%clk 0:02:38.5]} 18. a4
{[%clk 0:01:48.3]} 18... Nc6 {[%clk 0:02:37.5]} 19. Bb5 {[%clk 0:01:42.5]} 19...
Nb4 {[%clk 0:02:33.7]} 20. Bxd7+ {[%clk 0:01:41.7]} 20... Kxd7 {[%clk
0:02:34.6]} 21. Nd2 {[%clk 0:01:29.7]} 21... Rc2 {[%clk 0:02:28]} 22. Qf3 {[%clk
0:01:28.5]} 22... f6 {[%clk 0:02:17.2]} 23. Nb3 {[%clk 0:01:24.2]} 23... Rhc8
{[%clk 0:02:10.5]} 24. exf6 {[%clk 0:01:22.7]} 24... gxf6 {[%clk 0:02:07.4]} 25.
Nc5+ {[%clk 0:01:22.6]} 25... Bxc5 {[%clk 0:01:55.4]} 26. dxc5 {[%clk
0:01:22.5]} 26... Qd8 {[%clk 0:01:55.9]} 27. Rbd1 {[%clk 0:01:11]} 27... Qe7
{[%clk 0:01:55.5]} 28. Bd4 {[%clk 0:01:06.1]} 28... e5 {[%clk 0:01:28.8]} 29.
Bc3 {[%clk 0:01:01.9]} 29... Rxc5 {[%clk 0:01:14.8]} 30. Bxb4 {[%clk 0:00:58]}
30... axb4 {[%clk 0:01:15.7]} 31. Rxd5+ {[%clk 0:00:58.2]} 31... Rxd5 {[%clk
0:00:58.2]} 32. Qxd5+ {[%clk 0:00:58.2]} 32... Kc7 {[%clk 0:00:56.8]} 33. Rd1
{[%clk 0:00:50.9]} 33... Kb8 {[%clk 0:00:37.4]} 34. Kg2 {[%clk 0:00:35.1]} 34...
f5 {[%clk 0:00:25.4]} 35. gxf5 {[%clk 0:00:29.5]} 35... Rxb2 {[%clk 0:00:17.1]}
36. Qg8+ {[%clk 0:00:22.4]} 36... Ka7 {[%clk 0:00:16.6]} 37. Rd8 {[%clk
0:00:22.4]} 37... Rxf2+ {[%clk 0:00:02.6]} 38. Kxf2 {[%clk 0:00:21.9]} 38...
Qc5+ {[%clk 0:00:02.9]} 39. Kf3 {[%clk 0:00:19.8]} 39... Qc3+ {[%clk 0:00:02]}
40. Ke4 {[%clk 0:00:19.9]} 1-0